[Event "*** SCC Grand Prix: Titled Tuesday Blitz"]
[Site "Chess.com"]
[Date "2020.10.13"]
[Round "3"]
[White "penguingm1"]
[Black "Shota_Azaladze"]
[Result "1-0"]
[WhiteElo "2858"]
[BlackElo "2643"]
[TimeControl "180+1"]
[EndTime "10:29:27 PDT"]
[Termination "penguingm1 won by resignation"]

1. d4 {[%clk 0:03:00.9]} 1... Nf6 {[%clk 0:02:58]} 2. c4 {[%clk 0:03:01.1]} 2...
e6 {[%clk 0:02:57.7]} 3. Nc3 {[%clk 0:02:56.5]} 3... d5 {[%clk 0:02:56.6]} 4.
cxd5 {[%clk 0:02:57.4]} 4... exd5 {[%clk 0:02:55.7]} 5. Bg5 {[%clk 0:02:57.6]}
5... c6 {[%clk 0:02:53.7]} 6. e3 {[%clk 0:02:57.4]} 6... Be7 {[%clk 0:02:50.7]}
7. Bd3 {[%clk 0:02:57.5]} 7... Bg4 {[%clk 0:02:47.2]} 8. Qc2 {[%clk 0:02:56.1]}
8... Bh5 {[%clk 0:02:45.4]} 9. Nge2 {[%clk 0:02:37.8]} 9... Bg6 {[%clk
0:02:43.8]} 10. O-O {[%clk 0:02:32.7]} 10... O-O {[%clk 0:02:41.4]} 11. Bxg6
{[%clk 0:02:27.8]} 11... hxg6 {[%clk 0:02:40.7]} 12. f3 {[%clk 0:02:28.5]} 12...
Nbd7 {[%clk 0:01:53.3]} 13. Rad1 {[%clk 0:02:25.4]} 13... Re8 {[%clk 0:01:51.8]}
14. h3 {[%clk 0:02:11.9]} 14... Qa5 {[%clk 0:01:48.2]} 15. a3 {[%clk 0:02:03.2]}
15... Nf8 {[%clk 0:01:34.9]} 16. b4 {[%clk 0:01:58.9]} 16... Qa6 {[%clk
0:01:23.6]} 17. b5 {[%clk 0:01:15.9]} 17... Qxa3 {[%clk 0:01:18.5]} 18. bxc6
{[%clk 0:01:15.6]} 18... bxc6 {[%clk 0:01:18.6]} 19. Ra1 {[%clk 0:01:16.3]}
19... Qd6 {[%clk 0:01:15.2]} 20. Ra6 {[%clk 0:01:11.2]} 20... Ne6 {[%clk
0:01:10.5]} 21. Bxf6 {[%clk 0:00:55.3]} 21... Bxf6 {[%clk 0:01:09.9]} 22. Nb5
{[%clk 0:00:55]} 22... Qe7 {[%clk 0:01:02.2]} 23. Rxc6 {[%clk 0:00:30.9]} 23...
Nxd4 {[%clk 0:00:41.2]} 24. Nexd4 {[%clk 0:00:30.3]} 24... a6 {[%clk 0:00:36.7]}
25. Nc7 {[%clk 0:00:21.6]} 25... Qxe3+ {[%clk 0:00:35.4]} 26. Kh1 {[%clk
0:00:21.4]} 26... Bxd4 {[%clk 0:00:33.9]} 27. Nxa8 {[%clk 0:00:15.9]} 27... Rxa8
{[%clk 0:00:33.8]} 28. f4 {[%clk 0:00:12.5]} 28... Re8 {[%clk 0:00:33.2]} 29.
Rxa6 {[%clk 0:00:10.4]} 29... Qg3 {[%clk 0:00:30.3]} 30. Qd2 {[%clk 0:00:07.8]}
30... Re4 {[%clk 0:00:25.5]} 31. Ra4 {[%clk 0:00:04.6]} 31... Be3 {[%clk
0:00:24.1]} 32. Ra8+ {[%clk 0:00:03]} 32... Kh7 {[%clk 0:00:23.5]} 33. Qe1
{[%clk 0:00:03.9]} 33... Qxe1 {[%clk 0:00:22]} 34. Rxe1 {[%clk 0:00:04.3]} 34...
d4 {[%clk 0:00:22.9]} 35. Rd8 {[%clk 0:00:04.2]} 35... Rxf4 {[%clk 0:00:22.5]}
36. Kh2 {[%clk 0:00:04.6]} 36... g5 {[%clk 0:00:22]} 37. Kg3 {[%clk 0:00:04.9]}
37... f6 {[%clk 0:00:22.3]} 38. Re2 {[%clk 0:00:04.8]} 38... Rf1 {[%clk
0:00:21.6]} 39. Rd7 {[%clk 0:00:04]} 39... Kg6 {[%clk 0:00:21.8]} 40. Kh2 {[%clk
0:00:04.5]} 40... Rd1 {[%clk 0:00:21.2]} 41. Rxe3 {[%clk 0:00:03.7]} 41... Kf5
{[%clk 0:00:20.7]} 42. Ree7 {[%clk 0:00:03.2]} 42... g6 {[%clk 0:00:20]} 43.
Rd5+ {[%clk 0:00:03.8]} 43... Kf4 {[%clk 0:00:19.9]} 44. Re6 {[%clk 0:00:04.3]}
44... f5 {[%clk 0:00:20.2]} 45. Re2 {[%clk 0:00:04.5]} 45... d3 {[%clk 0:00:20]}
46. Re6 {[%clk 0:00:04.4]} 46... g4 {[%clk 0:00:20.3]} 47. hxg4 {[%clk
0:00:04.2]} 47... fxg4 {[%clk 0:00:20.9]} 48. Rd4+ {[%clk 0:00:04.6]} 48... Kf5
{[%clk 0:00:20.8]} 49. Red6 {[%clk 0:00:05.1]} 49... Ke5 {[%clk 0:00:17.9]} 50.
Rxd3 {[%clk 0:00:04.9]} 50... Re1 {[%clk 0:00:18.2]} 51. R6d5+ {[%clk
0:00:04.5]} 51... Kf4 {[%clk 0:00:18.4]} 52. R3d4+ {[%clk 0:00:04.5]} 52... Ke3
{[%clk 0:00:18.6]} 53. Rxg4 {[%clk 0:00:04.8]} 53... Rd1 {[%clk 0:00:19.1]} 1-0

[Event "*** SCC Grand Prix: Titled Tuesday Blitz"]
[Site "Chess.com"]
[Date "2020.10.13"]
[Round "3"]
[White "INLOVEWITHF"]
[Black "Manukyan_Artak"]
[Result "1-0"]
[WhiteElo "2549"]
[BlackElo "2313"]
[TimeControl "180+1"]
[EndTime "10:29:27 PDT"]
[Termination "INLOVEWITHF won by resignation"]

1. d4 {[%clk 0:02:56.1]} 1... Nf6 {[%clk 0:02:59.1]} 2. c4 {[%clk 0:02:55.9]}
2... c5 {[%clk 0:02:58.6]} 3. dxc5 {[%clk 0:02:55.3]} 3... Na6 {[%clk
0:02:48.4]} 4. g3 {[%clk 0:02:54]} 4... Nxc5 {[%clk 0:02:48.3]} 5. Bg2 {[%clk
0:02:54.6]} 5... g6 {[%clk 0:02:41.1]} 6. Nc3 {[%clk 0:02:54.1]} 6... Bg7 {[%clk
0:02:41]} 7. Be3 {[%clk 0:02:47.2]} 7... Ne6 {[%clk 0:02:30.8]} 8. Nf3 {[%clk
0:02:43.6]} 8... Ng4 {[%clk 0:02:26.2]} 9. Bd2 {[%clk 0:02:40.4]} 9... Qb6
{[%clk 0:02:17.3]} 10. O-O {[%clk 0:02:38.7]} 10... Qxb2 {[%clk 0:02:16.9]} 11.
Rb1 {[%clk 0:02:35.3]} 11... Qa3 {[%clk 0:02:15.3]} 12. Nb5 {[%clk 0:02:29.9]}
12... Qc5 {[%clk 0:02:12]} 13. Bb4 {[%clk 0:01:57.7]} 13... Qh5 {[%clk
0:02:10.8]} 14. h3 {[%clk 0:01:50]} 14... Ne5 {[%clk 0:02:04.2]} 15. Nfd4 {[%clk
0:01:44.3]} 15... O-O {[%clk 0:02:01]} 16. Bxe7 {[%clk 0:01:42]} 16... Re8
{[%clk 0:01:54.8]} 17. Bd6 {[%clk 0:01:34.9]} 17... Nxd4 {[%clk 0:01:52.6]} 18.
Nxd4 {[%clk 0:01:29.1]} 18... Nc6 {[%clk 0:01:47.2]} 19. Nb5 {[%clk 0:01:25.2]}
19... b6 {[%clk 0:00:53.4]} 20. Nc7 {[%clk 0:00:53.1]} 20... Bb7 {[%clk
0:00:52.4]} 21. Nxe8 {[%clk 0:00:52.8]} 21... Rxe8 {[%clk 0:00:52]} 22. c5
{[%clk 0:00:53.7]} 22... Ba6 {[%clk 0:00:43.1]} 23. Bf4 {[%clk 0:00:45.8]} 23...
Bxe2 {[%clk 0:00:37.8]} 24. Qxd7 {[%clk 0:00:44.4]} 24... Rd8 {[%clk 0:00:30.9]}
25. Qxc6 {[%clk 0:00:42.3]} 25... Bxf1 {[%clk 0:00:31.1]} 26. Rxf1 {[%clk
0:00:40.6]} 26... Qxc5 {[%clk 0:00:30.7]} 27. Qxc5 {[%clk 0:00:40.5]} 27... bxc5
{[%clk 0:00:31.6]} 28. Rc1 {[%clk 0:00:40.2]} 28... Bd4 {[%clk 0:00:30.2]} 29.
Be3 {[%clk 0:00:38.5]} 29... f5 {[%clk 0:00:30]} 30. Bxd4 {[%clk 0:00:36.5]}
30... cxd4 {[%clk 0:00:30.9]} 31. Kf1 {[%clk 0:00:35.6]} 31... Rd7 {[%clk
0:00:28.8]} 32. Ke2 {[%clk 0:00:35.3]} 32... Kf7 {[%clk 0:00:27.4]} 33. Kd3
{[%clk 0:00:35.5]} 33... Ke6 {[%clk 0:00:26.8]} 34. Rc4 {[%clk 0:00:35.5]} 34...
Ke5 {[%clk 0:00:26.2]} 35. f4+ {[%clk 0:00:35.3]} 35... Ke6 {[%clk 0:00:26.1]}
36. Rxd4 {[%clk 0:00:35.4]} 36... Rc7 {[%clk 0:00:25.3]} 37. Rc4 {[%clk
0:00:35]} 37... Rd7+ {[%clk 0:00:25.1]} 38. Kc2 {[%clk 0:00:34.7]} 38... h5
{[%clk 0:00:23.3]} 39. Rc6+ {[%clk 0:00:34]} 39... Kf7 {[%clk 0:00:22.8]} 40.
Bf1 {[%clk 0:00:33.8]} 40... Kg7 {[%clk 0:00:21.9]} 41. Bc4 {[%clk 0:00:34.7]}
41... Re7 {[%clk 0:00:20.9]} 42. Re6 {[%clk 0:00:32.1]} 42... Rc7 {[%clk
0:00:20.8]} 43. Kc3 {[%clk 0:00:31.1]} 43... Rd7 {[%clk 0:00:19.9]} 44. h4
{[%clk 0:00:30.4]} 44... Rc7 {[%clk 0:00:19.9]} 45. a4 {[%clk 0:00:29.5]} 45...
Rd7 {[%clk 0:00:20]} 46. a5 {[%clk 0:00:28.9]} 46... Rc7 {[%clk 0:00:19.6]} 47.
a6 {[%clk 0:00:27.7]} 47... Rd7 {[%clk 0:00:19.9]} 48. Kb4 {[%clk 0:00:26.2]}
48... Rc7 {[%clk 0:00:19.7]} 49. Bb5 {[%clk 0:00:25]} 49... Rf7 {[%clk
0:00:18.7]} 50. Kc5 {[%clk 0:00:23.3]} 50... Rc7+ {[%clk 0:00:18.5]} 51. Bc6
{[%clk 0:00:24]} 51... Rf7 {[%clk 0:00:18.2]} 52. Kd6 {[%clk 0:00:23.6]} 1-0

[Event "*** SCC Grand Prix: Titled Tuesday Blitz"]
[Site "Chess.com"]
[Date "2020.10.13"]
[Round "3"]
[White "elcandado"]
[Black "MalyDominator"]
[Result "1-0"]
[WhiteElo "2571"]
[BlackElo "2370"]
[TimeControl "180+1"]
[EndTime "10:29:29 PDT"]
[Termination "elcandado won on time"]

1. d4 {[%clk 0:03:00.9]} 1... d5 {[%clk 0:02:59]} 2. Bf4 {[%clk 0:02:59.8]} 2...
Nf6 {[%clk 0:02:55.1]} 3. e3 {[%clk 0:02:58.7]} 3... c6 {[%clk 0:02:54.3]} 4.
Nd2 {[%clk 0:02:57.1]} 4... g6 {[%clk 0:02:54.6]} 5. h3 {[%clk 0:02:53]} 5...
Bg7 {[%clk 0:02:54.7]} 6. Ngf3 {[%clk 0:02:53]} 6... O-O {[%clk 0:02:54.6]} 7.
Be2 {[%clk 0:02:50.7]} 7... Nbd7 {[%clk 0:02:48.1]} 8. O-O {[%clk 0:02:50.8]}
8... b6 {[%clk 0:02:42.1]} 9. Bh2 {[%clk 0:02:50.8]} 9... Bb7 {[%clk 0:02:41.4]}
10. a4 {[%clk 0:02:51.3]} 10... c5 {[%clk 0:02:34.3]} 11. c3 {[%clk 0:02:51.2]}
11... a6 {[%clk 0:02:32.2]} 12. Qb1 {[%clk 0:02:38]} 12... Ra7 {[%clk
0:02:25.6]} 13. b4 {[%clk 0:02:33.6]} 13... Qa8 {[%clk 0:02:19]} 14. Rc1 {[%clk
0:02:13.6]} 14... Rc8 {[%clk 0:02:01.7]} 15. a5 {[%clk 0:02:06.1]} 15... cxb4
{[%clk 0:01:54.1]} 16. axb6 {[%clk 0:02:04.7]} 16... Nxb6 {[%clk 0:01:48.3]} 17.
Qxb4 {[%clk 0:02:04.3]} 17... Nc4 {[%clk 0:01:32.7]} 18. Qxe7 {[%clk 0:01:54.9]}
18... Ne4 {[%clk 0:01:19.3]} 19. Nxc4 {[%clk 0:01:28.5]} 19... dxc4 {[%clk
0:01:17.6]} 20. Qa3 {[%clk 0:01:26.2]} 20... a5 {[%clk 0:01:13]} 21. Rcb1 {[%clk
0:01:17.2]} 21... Bd5 {[%clk 0:01:04.1]} 22. Rb5 {[%clk 0:01:03]} 22... Bf8
{[%clk 0:01:02.4]} 23. Qc1 {[%clk 0:00:58.9]} 23... a4 {[%clk 0:00:59.3]} 24.
Bf1 {[%clk 0:00:55.1]} 24... a3 {[%clk 0:00:39.7]} 25. Nd2 {[%clk 0:00:54.3]}
25... Nxd2 {[%clk 0:00:25.5]} 26. Qxd2 {[%clk 0:00:55.2]} 26... Qc6 {[%clk
0:00:25.7]} 27. Rbb1 {[%clk 0:00:50.9]} 27... Qa4 {[%clk 0:00:24.6]} 28. f3
{[%clk 0:00:35.2]} 28... f5 {[%clk 0:00:16.5]} 29. Be5 {[%clk 0:00:32]} 29...
Rca8 {[%clk 0:00:12.4]} 30. Be2 {[%clk 0:00:31.5]} 30... a2 {[%clk 0:00:12.6]}
31. Rb2 {[%clk 0:00:30.9]} 31... Qa3 {[%clk 0:00:11.6]} 32. Kh2 {[%clk
0:00:17.5]} 32... Ra4 {[%clk 0:00:09.3]} 33. Rbxa2 {[%clk 0:00:16.9]} 33... Qxa2
{[%clk 0:00:09.4]} 34. Rxa2 {[%clk 0:00:17.4]} 34... Rxa2 {[%clk 0:00:10.3]} 35.
Qe1 {[%clk 0:00:17.8]} 35... Ra1 {[%clk 0:00:09.4]} 36. Qh4 {[%clk 0:00:17.5]}
36... R1a6 {[%clk 0:00:06.5]} 37. e4 {[%clk 0:00:14.2]} 37... fxe4 {[%clk
0:00:06.7]} 38. fxe4 {[%clk 0:00:15.1]} 38... Bf7 {[%clk 0:00:07.3]} 39. d5
{[%clk 0:00:13.4]} 39... Rc8 {[%clk 0:00:07]} 40. Bd4 {[%clk 0:00:12.6]} 40...
Bd6+ {[%clk 0:00:06.4]} 41. e5 {[%clk 0:00:12.2]} 41... Bc5 {[%clk 0:00:04.7]}
42. e6 {[%clk 0:00:11.1]} 42... Be8 {[%clk 0:00:03.3]} 43. Qf6 {[%clk
0:00:10.1]} 43... Bxd4 {[%clk 0:00:03.3]} 44. Qxd4 {[%clk 0:00:11]} 44... Rd6
{[%clk 0:00:02.6]} 45. Bf3 {[%clk 0:00:10.6]} 45... Rcd8 {[%clk 0:00:02.8]} 46.
Qe5 {[%clk 0:00:10.5]} 46... Bb5 {[%clk 0:00:01.7]} 47. Qf4 {[%clk 0:00:09.6]}
1-0

[Event "*** SCC Grand Prix: Titled Tuesday Blitz"]
[Site "Chess.com"]
[Date "2020.10.13"]
[Round "3"]
[White "Tooweak2slow03"]
[Black "PotapovaM"]
[Result "1-0"]
[WhiteElo "2761"]
[BlackElo "2530"]
[TimeControl "180+1"]
[EndTime "10:29:30 PDT"]
[Termination "Tooweak2slow03 won by resignation"]

1. e4 {[%clk 0:03:00.9]} 1... c5 {[%clk 0:02:59.6]} 2. Nf3 {[%clk 0:03:01.4]}
2... d6 {[%clk 0:02:59.7]} 3. d4 {[%clk 0:03:00.3]} 3... cxd4 {[%clk 0:03:00.6]}
4. Nxd4 {[%clk 0:03:01.2]} 4... Nf6 {[%clk 0:03:00.8]} 5. Nc3 {[%clk 0:03:01.7]}
5... a6 {[%clk 0:03:00.6]} 6. a3 {[%clk 0:03:02.3]} 6... Nc6 {[%clk 0:02:55]} 7.
Nxc6 {[%clk 0:02:38.8]} 7... bxc6 {[%clk 0:02:54.1]} 8. e5 {[%clk 0:02:39.7]}
8... dxe5 {[%clk 0:02:52.3]} 9. Qxd8+ {[%clk 0:02:37.3]} 9... Kxd8 {[%clk
0:02:53]} 10. Na4 {[%clk 0:02:37.5]} 10... Bf5 {[%clk 0:02:49]} 11. Be3 {[%clk
0:02:30.8]} 11... Nd5 {[%clk 0:02:47.9]} 12. O-O-O {[%clk 0:02:28.8]} 12... Kc7
{[%clk 0:02:48]} 13. Bc5 {[%clk 0:02:27.6]} 13... e6 {[%clk 0:02:47.3]} 14. c4
{[%clk 0:02:27.7]} 14... Bxc5 {[%clk 0:02:29.1]} 15. Nxc5 {[%clk 0:02:28.6]}
15... Nf6 {[%clk 0:02:25.8]} 16. f3 {[%clk 0:02:24.3]} 16... a5 {[%clk 0:02:14]}
17. g4 {[%clk 0:02:21.9]} 17... Bg6 {[%clk 0:02:12.5]} 18. g5 {[%clk 0:02:22.5]}
18... Nh5 {[%clk 0:02:12.9]} 19. Rd7+ {[%clk 0:02:19.1]} 19... Kc8 {[%clk
0:01:45.1]} 20. Bh3 {[%clk 0:02:05.2]} 20... Nf4 {[%clk 0:01:37.7]} 21. Rhd1
{[%clk 0:01:54.3]} 21... Ne2+ {[%clk 0:01:01]} 22. Kd2 {[%clk 0:01:51.8]} 22...
Nd4 {[%clk 0:01:00.3]} 23. Kc3 {[%clk 0:01:49.6]} 23... Ne2+ {[%clk 0:00:35.9]}
24. Kd2 {[%clk 0:01:47.7]} 24... Nd4 {[%clk 0:00:35.7]} 25. Kc3 {[%clk 0:01:43]}
25... Ne2+ {[%clk 0:00:34.7]} 26. Kb3 {[%clk 0:01:43.5]} 26... a4+ {[%clk
0:00:24.5]} 27. Kb4 {[%clk 0:01:38.6]} 27... Nd4 {[%clk 0:00:20.7]} 28. f4
{[%clk 0:01:36.2]} 28... Rb8+ {[%clk 0:00:18.1]} 29. Ka5 {[%clk 0:01:29.6]}
29... Ra8+ {[%clk 0:00:18.3]} 30. Kb6 {[%clk 0:01:27.2]} 30... Rb8+ {[%clk
0:00:18]} 31. Ka6 {[%clk 0:01:26.3]} 31... Ra8+ {[%clk 0:00:17.6]} 32. Ra7
{[%clk 0:01:22.1]} 32... Rxa7+ {[%clk 0:00:16.9]} 33. Kxa7 {[%clk 0:01:23]}
33... Kc7 {[%clk 0:00:14.7]} 34. fxe5 {[%clk 0:01:21.4]} 34... Rd8 {[%clk
0:00:15.3]} 35. Na6+ {[%clk 0:01:16.7]} 35... Kc8 {[%clk 0:00:15.3]} 36. Kb6
{[%clk 0:01:16.8]} 36... Nf3 {[%clk 0:00:09.5]} 37. Rd6 {[%clk 0:01:08.1]} 37...
Nxe5 {[%clk 0:00:08.5]} 38. Rxd8+ {[%clk 0:01:06.9]} 38... Kxd8 {[%clk
0:00:09.3]} 39. Bf1 {[%clk 0:01:02.4]} 39... f5 {[%clk 0:00:07.7]} 40. Nb8
{[%clk 0:00:58.6]} 40... Be8 {[%clk 0:00:03.7]} 41. Kc5 {[%clk 0:00:56.7]} 41...
f4 {[%clk 0:00:04.1]} 42. Kd6 {[%clk 0:00:55]} 42... Nf7+ {[%clk 0:00:02.7]} 43.
Kxe6 {[%clk 0:00:53.5]} 43... Nxg5+ {[%clk 0:00:03.6]} 44. Kf5 {[%clk
0:00:52.4]} 44... Nf7 {[%clk 0:00:03.7]} 45. Kxf4 {[%clk 0:00:50.5]} 45... Kc7
{[%clk 0:00:04.2]} 46. Na6+ {[%clk 0:00:48.5]} 46... Kb6 {[%clk 0:00:04.1]} 47.
c5+ {[%clk 0:00:49.1]} 47... Kb7 {[%clk 0:00:04.4]} 48. Kf5 {[%clk 0:00:45.8]}
48... Bd7+ {[%clk 0:00:03.3]} 49. Ke4 {[%clk 0:00:46]} 49... Nd8 {[%clk
0:00:03.2]} 50. Nb4 {[%clk 0:00:41.9]} 50... Ne6 {[%clk 0:00:03.7]} 51. Nd3
{[%clk 0:00:40.5]} 51... Ng5+ {[%clk 0:00:03.8]} 52. Kf4 {[%clk 0:00:38.6]}
52... g6 {[%clk 0:00:04.2]} 53. Kxg5 {[%clk 0:00:37.8]} 1-0

[Event "*** SCC Grand Prix: Titled Tuesday Blitz"]
[Site "Chess.com"]
[Date "2020.10.13"]
[Round "3"]
[White "Ladislav1969"]
[Black "chesslh19"]
[Result "1/2-1/2"]
[WhiteElo "2370"]
[BlackElo "2223"]
[TimeControl "180+1"]
[EndTime "10:29:33 PDT"]
[Termination "Game drawn - insufficient material"]

1. e4 {[%clk 0:03:00.9]} 1... e5 {[%clk 0:02:58.9]} 2. Bc4 {[%clk 0:03:00.1]}
2... Nf6 {[%clk 0:02:57.9]} 3. d3 {[%clk 0:03:01]} 3... c6 {[%clk 0:02:55.8]} 4.
Nf3 {[%clk 0:03:00.1]} 4... d5 {[%clk 0:02:56.4]} 5. Bb3 {[%clk 0:03:00.4]} 5...
Bd6 {[%clk 0:02:56.7]} 6. Nc3 {[%clk 0:02:59.9]} 6... Be6 {[%clk 0:02:49]} 7.
O-O {[%clk 0:02:53.5]} 7... O-O {[%clk 0:02:46.2]} 8. Bg5 {[%clk 0:02:52.8]}
8... d4 {[%clk 0:01:52.4]} 9. Ne2 {[%clk 0:02:52.3]} 9... Bxb3 {[%clk
0:01:42.6]} 10. axb3 {[%clk 0:02:51.8]} 10... Nbd7 {[%clk 0:01:38.1]} 11. Ng3
{[%clk 0:02:51.4]} 11... Re8 {[%clk 0:01:33.9]} 12. Nf5 {[%clk 0:02:51.1]} 12...
Bf8 {[%clk 0:01:33.8]} 13. Nd2 {[%clk 0:02:41.7]} 13... Nc5 {[%clk 0:01:29.5]}
14. f4 {[%clk 0:02:38.5]} 14... exf4 {[%clk 0:01:17.1]} 15. Rxf4 {[%clk
0:02:30.7]} 15... Ne6 {[%clk 0:01:17]} 16. Bxf6 {[%clk 0:02:23.7]} 16... Qxf6
{[%clk 0:01:17.1]} 17. Rf3 {[%clk 0:02:22.9]} 17... Qd8 {[%clk 0:01:02.1]} 18.
Nc4 {[%clk 0:02:22.2]} 18... g6 {[%clk 0:00:53.9]} 19. Ng3 {[%clk 0:02:15.5]}
19... Bg7 {[%clk 0:00:53.5]} 20. Qe2 {[%clk 0:02:13.3]} 20... a6 {[%clk
0:00:50.5]} 21. Raf1 {[%clk 0:02:12.6]} 21... Re7 {[%clk 0:00:43.9]} 22. Qf2
{[%clk 0:02:12.4]} 22... Qc7 {[%clk 0:00:40]} 23. e5 {[%clk 0:02:06.5]} 23...
Rf8 {[%clk 0:00:33]} 24. Ne4 {[%clk 0:02:04.4]} 24... Rd7 {[%clk 0:00:29.2]} 25.
Nf6+ {[%clk 0:01:58.3]} 25... Bxf6 {[%clk 0:00:24.4]} 26. exf6 {[%clk
0:01:58.4]} 26... b5 {[%clk 0:00:22.2]} 27. Nd2 {[%clk 0:01:56]} 27... Rd5
{[%clk 0:00:16.2]} 28. Ne4 {[%clk 0:01:52.8]} 28... Ng5 {[%clk 0:00:14.9]} 29.
Qh4 {[%clk 0:01:47.5]} 29... Nxf3+ {[%clk 0:00:10.9]} 30. Rxf3 {[%clk
0:01:47.6]} 30... h5 {[%clk 0:00:10.3]} 31. Qf4 {[%clk 0:01:46.5]} 31... Qxf4
{[%clk 0:00:09.3]} 32. Rxf4 {[%clk 0:01:46.2]} 32... Rf5 {[%clk 0:00:09.4]} 33.
Rxf5 {[%clk 0:01:28.3]} 33... gxf5 {[%clk 0:00:10.3]} 34. Ng3 {[%clk 0:01:28.9]}
34... Ra8 {[%clk 0:00:10.2]} 35. Nxf5 {[%clk 0:01:26.7]} 35... Kf8 {[%clk
0:00:09.5]} 36. Nxd4 {[%clk 0:01:24.9]} 36... a5 {[%clk 0:00:08.8]} 37. Nxc6
{[%clk 0:01:24.8]} 37... Ra6 {[%clk 0:00:08.7]} 38. Nd4 {[%clk 0:01:23.2]} 38...
a4 {[%clk 0:00:08.2]} 39. Nxb5 {[%clk 0:01:21.7]} 39... axb3 {[%clk 0:00:08.1]}
40. cxb3 {[%clk 0:01:20.6]} 40... Rxf6 {[%clk 0:00:07.8]} 41. Nd4 {[%clk
0:01:17]} 41... Rb6 {[%clk 0:00:06.7]} 42. Kf2 {[%clk 0:01:16]} 42... Ke7 {[%clk
0:00:06.4]} 43. Ke3 {[%clk 0:01:16.1]} 43... Kd6 {[%clk 0:00:06.4]} 44. Ke4
{[%clk 0:01:15.3]} 44... Rb4 {[%clk 0:00:05.7]} 45. Ke3 {[%clk 0:01:14.4]} 45...
Kc5 {[%clk 0:00:05.1]} 46. Ne2 {[%clk 0:00:58.9]} 46... Rxb3 {[%clk 0:00:05.2]}
47. Nc3 {[%clk 0:00:59.7]} 47... Kd6 {[%clk 0:00:04.3]} 48. Nd1 {[%clk
0:00:58.4]} 48... Kd5 {[%clk 0:00:03.8]} 49. g3 {[%clk 0:00:55.9]} 49... Rb8
{[%clk 0:00:03.5]} 50. Nc3+ {[%clk 0:00:54.9]} 50... Kc5 {[%clk 0:00:03.1]} 51.
Kf4 {[%clk 0:00:53.6]} 51... h4 {[%clk 0:00:02.8]} 52. gxh4 {[%clk 0:00:53.2]}
52... Kd4 {[%clk 0:00:03.2]} 53. h5 {[%clk 0:00:50.4]} 53... Kxd3 {[%clk
0:00:03.3]} 54. h6 {[%clk 0:00:50]} 54... Rxb2 {[%clk 0:00:03.4]} 55. h4 {[%clk
0:00:48.7]} 55... Rb6 {[%clk 0:00:03]} 56. Kg5 {[%clk 0:00:40.6]} 56... f6+
{[%clk 0:00:03.3]} 57. Kf5 {[%clk 0:00:39.3]} 57... Kxc3 {[%clk 0:00:02.6]} 58.
h7 {[%clk 0:00:39.3]} 58... Rb5+ {[%clk 0:00:02.2]} 59. Kxf6 {[%clk 0:00:39.3]}
59... Rh5 {[%clk 0:00:02.2]} 60. Kg7 {[%clk 0:00:38.6]} 60... Rxh4 {[%clk
0:00:02.4]} 61. Kg6 {[%clk 0:00:38.8]} 61... Rxh7 {[%clk 0:00:02.7]} 62. Kxh7
{[%clk 0:00:38.5]} 1/2-1/2

[Event "*** SCC Grand Prix: Titled Tuesday Blitz"]
[Site "Chess.com"]
[Date "2020.10.13"]
[Round "3"]
[White "SergeyKarjakin"]
[Black "1977Ivan"]
[Result "1/2-1/2"]
[WhiteElo "2896"]
[BlackElo "2679"]
[TimeControl "180+1"]
[EndTime "10:29:41 PDT"]
[Termination "Game drawn by agreement"]

1. e4 {[%clk 0:03:00.9]} 1... c5 {[%clk 0:02:59.2]} 2. Nf3 {[%clk 0:03:00.5]}
2... Nc6 {[%clk 0:02:58.1]} 3. Nc3 {[%clk 0:02:58.8]} 3... Nf6 {[%clk
0:02:55.9]} 4. Bb5 {[%clk 0:02:57.2]} 4... Nd4 {[%clk 0:02:55.7]} 5. O-O {[%clk
0:02:56.5]} 5... Nxb5 {[%clk 0:02:37.7]} 6. Nxb5 {[%clk 0:02:54.1]} 6... Nxe4
{[%clk 0:02:33.4]} 7. d3 {[%clk 0:02:38.2]} 7... a6 {[%clk 0:02:22.2]} 8. dxe4
{[%clk 0:02:27]} 8... axb5 {[%clk 0:02:21.6]} 9. e5 {[%clk 0:02:26.5]} 9... d5
{[%clk 0:02:03.3]} 10. exd6 {[%clk 0:02:25.7]} 10... Qxd6 {[%clk 0:01:44.5]} 11.
Qe2 {[%clk 0:02:25.6]} 11... b4 {[%clk 0:01:38.9]} 12. Rd1 {[%clk 0:02:25.1]}
12... Qa6 {[%clk 0:01:35.8]} 13. Qe5 {[%clk 0:02:11.1]} 13... f6 {[%clk
0:01:09]} 14. Qxc5 {[%clk 0:02:04.9]} 14... e5 {[%clk 0:01:08.9]} 15. Qc7 {[%clk
0:01:33.1]} 15... Be7 {[%clk 0:01:09.3]} 16. Be3 {[%clk 0:01:33.1]} 16... Qc6
{[%clk 0:01:01.8]} 17. Qxc6+ {[%clk 0:01:32.6]} 17... bxc6 {[%clk 0:01:02.7]}
18. Nd2 {[%clk 0:01:33.1]} 18... Be6 {[%clk 0:01:02.5]} 19. Ne4 {[%clk
0:01:31.6]} 19... Kf7 {[%clk 0:01:02.1]} 20. Bc5 {[%clk 0:01:15.3]} 20... Bd5
{[%clk 0:01:01.6]} 21. Nd6+ {[%clk 0:01:11.3]} 21... Ke6 {[%clk 0:00:52.5]} 22.
Nb7 {[%clk 0:01:03.8]} 22... Rhb8 {[%clk 0:00:52.9]} 23. Bxe7 {[%clk 0:01:03.5]}
23... Rxb7 {[%clk 0:00:48.6]} 24. Bc5 {[%clk 0:01:03.2]} 24... Rb5 {[%clk
0:00:49]} 25. Be3 {[%clk 0:01:02.8]} 25... Rba5 {[%clk 0:00:39.2]} 26. a3 {[%clk
0:00:48.8]} 26... bxa3 {[%clk 0:00:40.1]} 27. bxa3 {[%clk 0:00:49.7]} 27... Rxa3
{[%clk 0:00:39.9]} 28. Rac1 {[%clk 0:00:50.3]} 28... Ra2 {[%clk 0:00:35.5]} 29.
c4 {[%clk 0:00:48.1]} 29... Be4 {[%clk 0:00:34.9]} 30. Bc5 {[%clk 0:00:44.9]}
30... R8a4 {[%clk 0:00:24.4]} 31. g4 {[%clk 0:00:23.1]} 31... Bf3 {[%clk
0:00:20.5]} 32. Rd6+ {[%clk 0:00:23.1]} 32... Kf7 {[%clk 0:00:20.5]} 33. Rd7+
{[%clk 0:00:23.7]} 33... Kg6 {[%clk 0:00:19.5]} 34. h3 {[%clk 0:00:22.3]} 34...
h5 {[%clk 0:00:16.5]} 35. gxh5+ {[%clk 0:00:20.6]} 35... Bxh5 {[%clk 0:00:16.2]}
36. Bf8 {[%clk 0:00:19.3]} 36... Kf5 {[%clk 0:00:16.1]} 37. Rxg7 {[%clk
0:00:19.6]} 37... Be2 {[%clk 0:00:15.5]} 38. Rc7 {[%clk 0:00:15]} 38... Bxc4
{[%clk 0:00:14.2]} 39. Rxc6 {[%clk 0:00:14.5]} 39... Bd5 {[%clk 0:00:14.5]} 40.
R6c3 {[%clk 0:00:12]} 40... Ra1 {[%clk 0:00:11.9]} 41. Bc5 {[%clk 0:00:09.8]}
41... Rxc1+ {[%clk 0:00:11]} 42. Rxc1 {[%clk 0:00:10.7]} 42... Ra2 {[%clk
0:00:10.2]} 43. Be3 {[%clk 0:00:09.9]} 43... Bf3 {[%clk 0:00:10.2]} 44. Kh2
{[%clk 0:00:09.8]} 44... Be4 {[%clk 0:00:09.5]} 45. Kg3 {[%clk 0:00:10.7]} 45...
Ra8 {[%clk 0:00:09]} 46. h4 {[%clk 0:00:10.2]} 46... Rg8+ {[%clk 0:00:09.4]} 47.
Kh3 {[%clk 0:00:10.8]} 47... Bg2+ {[%clk 0:00:09]} 48. Kh2 {[%clk 0:00:10.9]}
48... Bf3 {[%clk 0:00:09.9]} 49. Rg1 {[%clk 0:00:10.5]} 49... Rxg1 {[%clk
0:00:09.4]} 50. Kxg1 {[%clk 0:00:11.4]} 50... Kg4 {[%clk 0:00:09.9]} 51. Bh6
{[%clk 0:00:09.7]} 1/2-1/2